[Event "HUN-ch Rapid 2019"]
[Site "Ajka"]
[Date "2019.07.19"]
[Round "1.17"]
[White "Losonczi, Marcell"]
[Black "Farago, Ivan"]
[Result "0-1"]
[ECO "C18"]
[WhiteElo "2276"]
[BlackElo "2350"]
[Annotator "ChessBase"]
[PlyCount "90"]
[EventDate "2019.07.18"]
[EventType "swiss"]
[EventCountry "HUN"]
[SourceTitle "playchess.com"]
[Source "ChessBase"]
[SourceQuality "1"]
[TimeControl "1200+5"]

1. e4 {[%emt 0:00:05]} e6 {[%emt 0:00:01]} 2. d4 {[%emt 0:00:05]} d5 {[%emt 0:00:02]} 3. Nc3 {[%emt 0:00:05]} Bb4 {[%emt 0:00:02]} 4. e5 {[%emt 0:00:07]} c5 {[%emt 0:00:02]} 5. a3 {[%emt 0:00:14]} Bxc3+ {[%emt 0:00:03]} 6. bxc3 {[%emt 0:00:03]} Qa5 {[%emt 0:00:12]} 7. Bd2 {[%emt 0:00:33]} Qa4 {[%emt 0:00:02]} 8. Nf3 {[%emt 0:00:34]} Ne7 {[%emt 0:00:11]} 9. Be2 {[%emt 0:02:44]} b6 {[%emt 0:00:19]} 10. O-O {[%emt 0:01:46]} Ba6 {[%emt 0:00:02]} 11. Bg5 {[%emt 0:00:50]} Nbc6 {[%emt 0:00:31]} 12. dxc5 {[%emt 0:03:21]} bxc5 {[%emt 0:00:02]} 13. Be3 {[%emt 0:00:05]} Bxe2 {[%emt 0:00:46]} 14. Qxe2 {[%emt 0:00:02]} Qa5 {[%emt 0:00:05]} 15. c4 {[%emt 0:01:08]} d4 {[%emt 0:00:17]} 16. Bf4 {[%emt 0:00:53]} O-O {[%emt 0:00:12]} 17. Nd2 {[%emt 0:00:19]} Ng6 {[%emt 0:02:10]} 18. Bg3 {[%emt 0:00:16]} Qc7 {[%emt 0:00:03]} 19. Rfe1 {[%emt 0:00:28]} Nce7 {[%emt 0:00:10]} 20. Ne4 {[%emt 0:01:47]} Nf5 {[%emt 0:00:09]} 21. Nd6 {[%emt 0:00:07]} Nxg3 {[%emt 0:01:26]} 22. hxg3 {[%emt 0:00:02]} f6 {[%emt 0:00:02]} 23. Nb5 {[%emt 0:00:34]} Qc6 {[%emt 0:01:09]} 24. exf6 {[%emt 0:02:35]} a6 {[%emt 0:00:53]} 25. Qxe6+ {[%emt 0:00:30]} Qxe6 {[%emt 0:00:03]} 26. Rxe6 {[%emt 0:00:02]} axb5 {[%emt 0:00:02]} 27. fxg7 {[%emt 0:00:03]} Rfb8 {[%emt 0:00:43]} 28. cxb5 {[%emt 0:00:43]} Rxb5 {[%emt 0:00:05]} 29. f4 {[%emt 0:00:02]} Kxg7 {[%emt 0:00:21]} 30. f5 {[%emt 0:00:17]} Nf8 {[%emt 0:00:02]} 31. Rc6 {[%emt 0:00:12]} Re8 {[%emt 0:00:19]} 32. Kf2 {[%emt 0:00:46]} Re5 {[%emt 0:00:56]} 33. g4 {[%emt 0:00:39]} Rb2 {[%emt 0:00:01]} 34. Kg3 {[%emt 0:00:39]} Rxc2 {[%emt 0:00:09]} 35. Kf4 {[%emt 0:00:04]} Ree2 {[%emt 0:00:58]} 36. Rb1 {[%emt 0:00:07]} Rb2 {[%emt 0:03:15]} 37. Rc1 {[%emt 0:00:08]} Rf2+ {[%emt 0:01:05]} 38. Kg5 {[%emt 0:00:04]} h6+ {[%emt 0:00:07]} 39. Rxh6 {[%emt 0:00:05]} Nh7+ {[%emt 0:00:02]} 40. Kh5 {[%emt 0:00:02]} Nf6+ {[%emt 0:00:41]} 41. Kg5 {[%emt 0:00:02]} Ne4+ {[%emt 0:00:04]} 42. Kh5 {[%emt 0:00:02]} Rxg2 {[%emt 0:00:12]} 43. Rg6+ {[%emt 0:00:03]} Kf7 {[%emt 0:00:01]} 44. g5 {[%emt 0:00:06]} Ng3+ {[%emt 0:01:24]} 45. Kg4 {[%emt 0:00:06]} Nxf5+ {[%emt 0:00:03]} 0-1

[Event "HUN-ch Rapid 2019"]
[Site "Ajka"]
[Date "2019.07.19"]
[Round "1.18"]
[White "Jakab, Attila"]
[Black "Ongut, Tamas Gunes"]
[Result "1-0"]
[ECO "E70"]
[WhiteElo "2377"]
[BlackElo "2158"]
[Annotator "ChessBase"]
[PlyCount "116"]
[EventDate "2019.07.18"]
[EventType "swiss"]
[EventCountry "HUN"]
[SourceTitle "playchess.com"]
[Source "ChessBase"]
[SourceQuality "1"]
[TimeControl "1200+5"]

1. d4 {[%emt 0:00:06]} Nf6 {[%emt 0:00:04]} 2. c4 {[%emt 0:00:05]} g6 {[%emt 0:00:05]} 3. Nc3 {[%emt 0:00:03]} Bg7 {[%emt 0:00:03]} 4. e4 {[%emt 0:00:02]} d6 {[%emt 0:00:02]} 5. Nge2 {[%emt 0:00:02]} O-O {[%emt 0:00:44]} 6. Ng3 {[%emt 0:00:02]} e5 {[%emt 0:00:03]} 7. d5 {[%emt 0:00:02]} a5 {[%emt 0:00:04]} 8. Be2 {[%emt 0:00:03]} Na6 {[%emt 0:00:17]} 9. h4 {[%emt 0:00:02]} h5 {[%emt 0:00:04]} 10. Bg5 {[%emt 0:00:03]} Qe8 {[%emt 0:00:02]} 11. Qd2 {[%emt 0:00:02]} Nc5 {[%emt 0:00:48]} 12. O-O-O {[%emt 0:00:10]} a4 {[%emt 0:01:55]} 13. Rdg1 {[%emt 0:01:18]} Kh7 {[%emt 0:01:07]} 14. Bd1 {[%emt 0:00:23]} Bd7 {[%emt 0:01:26]} 15. Bc2 {[%emt 0:00:29]} Ng8 {[%emt 0:00:27]} 16. Be3 {[%emt 0:00:17]} b6 {[%emt 0:00:13]} 17. Nf1 {[%emt 0:00:42]} Nh6 {[%emt 0:00:19]} 18. f3 {[%emt 0:00:14]} a3 {[%emt 0:02:20]} 19. b3 {[%emt 0:00:11]} Qc8 {[%emt 0:01:09]} 20. g4 {[%emt 0:01:03]} hxg4 {[%emt 0:00:01]} 21. fxg4 {[%emt 0:02:12]} Nxg4 {[%emt 0:01:52]} 22. h5 {[%emt 0:00:08]} g5 {[%emt 0:00:02]} 23. Bxg5 {[%emt 0:00:12]} Nh6 {[%emt 0:01:18]} 24. Nh2 {[%emt 0:01:21]} b5 {[%emt 0:00:44]} 25. Be3 {[%emt 0:01:04]} Rg8 {[%emt 0:00:23]} 26. cxb5 {[%emt 0:01:43]} Qf8 {[%emt 0:00:30]} 27. Bd1 {[%emt 0:01:38]} f5 {[%emt 0:00:12]} 28. exf5 {[%emt 0:00:11]} Bxf5 {[%emt 0:00:05]} 29. Bc2 {[%emt 0:00:08]} e4 {[%emt 0:01:00]} 30. Rg6 {[%emt 0:00:56]} Bxc3 {[%emt 0:00:51]} 31. Qxc3 {[%emt 0:00:13]} Bxg6 {[%emt 0:00:03]} 32. hxg6+ {[%emt 0:00:02]} Rxg6 {[%emt 0:00:01]} 33. Ng4 {[%emt 0:02:16]} Qf3 {[%emt 0:00:45]} 34. Rh4 {[%emt 0:01:54]} Qf1+ {[%emt 0:01:05]} 35. Bd1 {[%emt 0:00:01]} Nd3+ {[%emt 0:01:03]} 36. Kc2 {[%emt 0:00:01]} Qg2+ {[%emt 0:00:11]} 37. Qd2 {[%emt 0:00:33]} Qg3 {[%emt 0:01:20]} 38. Rxh6+ {[%emt 0:00:16]} Rxh6 {[%emt 0:00:01]} 39. Nxh6 {[%emt 0:00:03]} Rf8 {[%emt 0:00:04]} 40. Ng4 {[%emt 0:00:12]} Ne1+ {[%emt 0:00:18]} 41. Kc3 {[%emt 0:00:07]} Nf3 {[%emt 0:00:02]} 42. Bxf3 {[%emt 0:00:30]} Rxf3 {[%emt 0:00:02]} 43. Kb4 {[%emt 0:00:51]} Qxg4 {[%emt 0:00:02]} 44. Qc1 {[%emt 0:00:03]} Rf7 {[%emt 0:00:16]} 45. Qh1+ {[%emt 0:00:05]} Kg8 {[%emt 0:00:06]} 46. Bd4 {[%emt 0:00:03]} Rh7 {[%emt 0:00:05]} 47. Qa1 {[%emt 0:00:35]} e3 {[%emt 0:00:08]} 48. Kxa3 {[%emt 0:00:01]} e2 {[%emt 0:00:04]} 49. Bf2 {[%emt 0:00:18]} Re7 {[%emt 0:00:04]} 50. Qc3 {[%emt 0:00:24]} Qg7 {[%emt 0:00:11]} 51. Qd2 {[%emt 0:00:08]} c5 {[%emt 0:00:02]} 52. bxc6 {[%emt 0:00:01]} Qe5 {[%emt 0:00:07]} 53. b4 {[%emt 0:00:11]} e1=Q {[%emt 0:00:03]} 54. Bxe1 {[%emt 0:00:02]} Qxe1 {[%emt 0:00:01]} 55. Qxe1 Rxe1 {[%emt 0:00:02]} 56. b5 {[%emt 0:00:07]} Rc1 {[%emt 0:00:18]} 57. b6 {[%emt 0:00:02]} Rc5 {[%emt 0:00:02]} 58. b7 {[%emt 0:00:03]} Rxd5 {[%emt 0:00:02]} 1-0

[Event "HUN-ch Rapid 2019"]
[Site "Ajka"]
[Date "2019.07.19"]
[Round "1.19"]
[White "Erseki, Tamara"]
[Black "Popovics, Adam"]
[Result "0-1"]
[ECO "B06"]
[WhiteElo "2053"]
[BlackElo "2365"]
[Annotator "ChessBase"]
[PlyCount "72"]
[EventDate "2019.07.18"]
[EventType "swiss"]
[EventCountry "HUN"]
[SourceTitle "playchess.com"]
[Source "ChessBase"]
[SourceQuality "1"]
[TimeControl "1200+5"]

1. e4 {[%emt 0:00:03]} g6 {[%emt 0:00:22]} 2. d4 {[%emt 0:00:03]} Bg7 {[%emt 0:00:02]} 3. Nc3 {[%emt 0:00:06]} a6 {[%emt 0:00:04]} 4. Be3 {[%emt 0:00:26]} b5 {[%emt 0:00:05]} 5. Qd2 {[%emt 0:01:14]} d6 {[%emt 0:00:09]} 6. h3 {[%emt 0:00:36]} Bb7 {[%emt 0:00:07]} 7. O-O-O {[%emt 0:01:04]} Nd7 {[%emt 0:00:17]} 8. f4 {[%emt 0:01:50]} b4 {[%emt 0:01:49]} 9. Nce2 {[%emt 0:00:47]} Bxe4 {[%emt 0:00:12]} 10. Qxb4 {[%emt 0:00:03]} Rb8 {[%emt 0:00:26]} 11. Qa4 {[%emt 0:00:01]} Ngf6 {[%emt 0:00:25]} 12. Nc3 {[%emt 0:00:24]} Bb7 {[%emt 0:00:04]} 13. Nf3 {[%emt 0:02:05]} O-O {[%emt 0:00:06]} 14. f5 {[%emt 0:01:54]} gxf5 {[%emt 0:00:10]} 15. Bd3 {[%emt 0:00:25]} e6 {[%emt 0:01:20]} 16. Rdf1 {[%emt 0:00:30]} c5 {[%emt 0:00:32]} 17. g4 {[%emt 0:00:24]} Nb6 {[%emt 0:01:04]} 18. Qa3 {[%emt 0:01:57]} c4 {[%emt 0:01:20]} 19. Be2 {[%emt 0:00:02]} fxg4 {[%emt 0:01:21]} 20. hxg4 {[%emt 0:00:02]} Nxg4 {[%emt 0:00:18]} 21. Bg5 {[%emt 0:00:32]} Qd7 {[%emt 0:00:25]} 22. Rh4 {[%emt 0:00:41]} f5 {[%emt 0:00:07]} 23. Bf4 {[%emt 0:00:49]} e5 {[%emt 0:01:11]} 24. dxe5 {[%emt 0:01:22]} dxe5 {[%emt 0:00:30]} 25. Rd1 {[%emt 0:00:03]} Qe8 {[%emt 0:01:03]} 26. Bd2 {[%emt 0:01:23]} e4 {[%emt 0:01:42]} 27. Ng5 {[%emt 0:00:50]} e3 {[%emt 0:00:17]} 28. Be1 {[%emt 0:00:01]} h6 {[%emt 0:00:33]} 29. Nf3 {[%emt 0:00:15]} Rf6 {[%emt 0:01:29]} 30. Bg3 {[%emt 0:00:30]} Rd8 {[%emt 0:00:15]} 31. Bc7 {[%emt 0:00:19]} Rxd1+ {[%emt 0:00:08]} 32. Bxd1 {[%emt 0:00:01]} e2 {[%emt 0:00:19]} 33. Nxe2 {[%emt 0:00:35]} Qe3+ {[%emt 0:01:12]} 34. Qxe3 {[%emt 0:00:09]} Nxe3 {[%emt 0:00:02]} 35. Ne5 {[%emt 0:00:25]} Nbd5 {[%emt 0:00:37]} 36. Bd8 {[%emt 0:00:13]} Rd6 {[%emt 0:00:08]} 0-1

[Event "HUN-ch Rapid 2019"]
[Site "Ajka"]
[Date "2019.07.19"]
[Round "1.20"]
[White "Dankhazi, Andras"]
[Black "Tamasi, Zoltan"]
[Result "1/2-1/2"]
[ECO "D20"]
[WhiteElo "2277"]
[BlackElo "1964"]
[Annotator "NA"]
[PlyCount "60"]
[EventDate "2019.07.18"]
[EventType "swiss"]
[EventCountry "HUN"]
[SourceTitle "playchess.com"]
[Source "ChessBase"]
[SourceQuality "1"]
[TimeControl "1200+5"]

1. d4 {[%emt 0:00:09]} d5 {[%emt 0:00:12]} 2. c4 {[%emt 0:00:02]} dxc4 {[%emt 0:00:31]} 3. e4 {[%emt 0:00:14]} e5 {[%emt 0:00:04]} 4. Nf3 {[%emt 0:00:02]} exd4 {[%emt 0:00:27]} 5. Bxc4 {[%emt 0:00:02]} Nc6 {[%emt 0:01:28]} 6. O-O {[%emt 0:00:03]} Be6 {[%emt 0:02:28]} 7. Bb5 {[%emt 0:00:01]} Bc5 {[%emt 0:00:16]} 8. b4 {[%emt 0:00:01]} Bb6 {[%emt 0:00:37]} 9. a4 {[%emt 0:00:23]} a6 {[%emt 0:00:25]} 10. Bxc6+ {[%emt 0:00:02]} bxc6 {[%emt 0:00:01]} 11. a5 {[%emt 0:00:01]} Ba7 {[%emt 0:00:01]} 12. Bb2 {[%emt 0:00:01]} c5 {[%emt 0:02:19]} 13. bxc5 {[%emt 0:00:36]} Bxc5 {[%emt 0:00:02]} 14. Nxd4 {[%emt 0:01:00]} Bxd4 {[%emt 0:01:14]} 15. Bxd4 {[%emt 0:01:44]} Nf6 {[%emt 0:01:52]} 16. Nc3 {[%emt 0:00:45]} O-O {[%emt 0:00:17]} 17. f3 {[%emt 0:04:04]} Qe7 {[%emt 0:01:37]} 18. Na4 {[%emt 0:00:40]} Rfd8 {[%emt 0:00:48]} 19. Bc5 {[%emt 0:00:09]} Qe8 {[%emt 0:00:22]} 20. Qe2 {[%emt 0:01:56]} Bb3 {[%emt 0:00:29]} 21. Nc3 {[%emt 0:00:15]} Qe5 {[%emt 0:00:06]} 22. Qe3 {[%emt 0:00:24]} Bc2 {[%emt 0:01:29]} 23. Nd5 {[%emt 0:03:15]} Nxd5 {[%emt 0:00:12]} 24. exd5 {[%emt 0:00:01]} Rxd5 {[%emt 0:00:48]} 25. Qxe5 {[%emt 0:00:14]} Rxe5 {[%emt 0:00:01]} 26. Bd4 {[%emt 0:00:28]} Rd5 {[%emt 0:00:05]} 27. Be3 {[%emt 0:00:01]} Rd7 {[%emt 0:00:56]} 28. Rfc1 {[%emt 0:00:31]} Bd3 {[%emt 0:00:43]} 29. Rd1 {[%emt 0:01:16]} Rad8 {[%emt 0:00:47]} 30. Rac1 {[%emt 0:00:50]} Bb5 {[%emt 0:00:09]} 1/2-1/2

[Event "HUN-ch Rapid 2019"]
[Site "Ajka"]
[Date "2019.07.19"]
[Round "2.2"]
[White "Haszon, David"]
[Black "Balog, Imre"]
[Result "0-1"]
[ECO "C01"]
[WhiteElo "2279"]
[BlackElo "2566"]
[Annotator "ChessBase"]
[PlyCount "110"]
[EventDate "2019.07.18"]
[EventType "swiss"]
[EventCountry "HUN"]
[SourceTitle "playchess.com"]
[Source "ChessBase"]
[SourceQuality "1"]
[TimeControl "1200+5"]

1. e4 {[%emt 0:00:03]} e6 {[%emt 0:00:08]} 2. d4 {[%emt 0:00:05]} d5 {[%emt 0:00:03]} 3. exd5 {[%emt 0:00:21]} exd5 {[%emt 0:00:04]} 4. Bd3 {[%emt 0:00:08]} Bd6 {[%emt 0:00:40]} 5. Ne2 {[%emt 0:01:19]} Nf6 {[%emt 0:00:20]} 6. Bg5 {[%emt 0:01:13]} Bg4 {[%emt 0:00:21]} 7. Nbc3 {[%emt 0:01:23]} c6 {[%emt 0:00:05]} 8. Qd2 {[%emt 0:00:17]} Nbd7 {[%emt 0:00:35]} 9. h3 {[%emt 0:00:27]} Bxe2 {[%emt 0:00:30]} 10. Qxe2+ {[%emt 0:00:28]} Qe7 {[%emt 0:00:03]} 11. Qxe7+ {[%emt 0:00:40]} Kxe7 {[%emt 0:00:22]} 12. O-O-O {[%emt 0:00:27]} Rae8 {[%emt 0:00:55]} 13. Rde1+ {[%emt 0:01:11]} Kd8 {[%emt 0:00:01]} 14. Bf5 {[%emt 0:00:52]} Kc7 {[%emt 0:00:07]} 15. Bxd7 {[%emt 0:01:04]} Nxd7 {[%emt 0:00:02]} 16. Bd2 {[%emt 0:00:59]} Re6 {[%emt 0:00:55]} 17. Re3 {[%emt 0:00:24]} Rf6 {[%emt 0:00:33]} 18. f3 {[%emt 0:00:42]} h5 {[%emt 0:01:10]} 19. Rhe1 {[%emt 0:00:07]} Rg6 {[%emt 0:00:09]} 20. R3e2 {[%emt 0:00:28]} Rd8 {[%emt 0:00:23]} 21. Nd1 {[%emt 0:00:15]} Nf8 {[%emt 0:00:26]} 22. c3 {[%emt 0:00:39]} Ne6 {[%emt 0:00:16]} 23. b3 {[%emt 0:00:07]} Kd7 {[%emt 0:00:09]} 24. Nb2 {[%emt 0:00:07]} Ba3 {[%emt 0:01:28]} 25. Kc2 {[%emt 0:00:03]} Bxb2 {[%emt 0:00:02]} 26. Kxb2 {[%emt 0:00:02]} Re8 {[%emt 0:00:18]} 27. Kc2 {[%emt 0:00:37]} Nc7 {[%emt 0:00:17]} 28. Rxe8 {[%emt 0:00:14]} Nxe8 {[%emt 0:00:02]} 29. g4 {[%emt 0:00:23]} Rf6 {[%emt 0:00:21]} 30. f4 {[%emt 0:00:46]} hxg4 {[%emt 0:00:05]} 31. hxg4 {[%emt 0:00:02]} Rh6 {[%emt 0:00:03]} 32. c4 {[%emt 0:00:16]} Rh2 {[%emt 0:00:12]} 33. Kd3 {[%emt 0:00:18]} Nf6 {[%emt 0:00:09]} 34. cxd5 {[%emt 0:01:31]} Nxd5 {[%emt 0:00:01]} 35. a4 {[%emt 0:00:24]} Rh3+ {[%emt 0:00:36]} 36. Kc2 {[%emt 0:00:02]} Rf3 {[%emt 0:00:20]} 37. f5 {[%emt 0:00:11]} Rg3 {[%emt 0:00:36]} 38. g5 {[%emt 0:00:31]} Rf3 {[%emt 0:00:01]} 39. Rh1 {[%emt 0:00:16]} Ne7 {[%emt 0:00:01]} 40. g6 {[%emt 0:00:44]} Nxf5 {[%emt 0:00:17]} 41. gxf7 {[%emt 0:00:10]} Nxd4+ {[%emt 0:00:02]} 42. Kb2 {[%emt 0:00:28]} Rxf7 {[%emt 0:00:02]} 43. Bc3 {[%emt 0:00:03]} Nf5 {[%emt 0:00:35]} 44. Rf1 {[%emt 0:00:07]} Ke8 {[%emt 0:00:20]} 45. Re1+ {[%emt 0:00:14]} Re7 {[%emt 0:00:01]} 46. Rg1 {[%emt 0:00:07]} Kf7 {[%emt 0:00:04]} 47. b4 {[%emt 0:00:03]} g6 {[%emt 0:00:07]} 48. Kb3 {[%emt 0:00:06]} Re3 {[%emt 0:00:02]} 49. b5 {[%emt 0:00:06]} Nd4+ {[%emt 0:00:54]} 50. Kc4 {[%emt 0:00:16]} Rxc3+ {[%emt 0:00:01]} 51. Kxd4 {[%emt 0:00:03]} Ra3 {[%emt 0:00:01]} 52. bxc6 {[%emt 0:00:27]} Rxa4+ {[%emt 0:00:01]} 53. Ke5 {[%emt 0:00:04]} bxc6 {[%emt 0:00:04]} 54. Rh1 {[%emt 0:00:05]} g5 {[%emt 0:00:06]} 55. Kf5 {[%emt 0:00:04]} Ra5+ {[%emt 0:00:01]} 0-1

[Event "HUN-ch Rapid 2019"]
[Site "Ajka"]
[Date "2019.07.19"]
[Round "2.4"]
[White "Hardicsay, Peter"]
[Black "Papp, Gabor"]
[Result "0-1"]
[ECO "A45"]
[WhiteElo "2185"]
[BlackElo "2587"]
[Annotator "ChessBase"]
[PlyCount "136"]
[EventDate "2019.07.18"]
[EventType "swiss"]
[EventCountry "HUN"]
[SourceTitle "playchess.com"]
[Source "ChessBase"]
[SourceQuality "1"]
[TimeControl "1200+5"]

1. d4 {[%emt 0:00:01]} Nf6 {[%emt 0:00:03]} 2. Bf4 {[%emt 0:00:05]} d5 {[%emt 0:00:06]} 3. e3 {[%emt 0:00:06]} c5 {[%emt 0:00:07]} 4. Nc3 {[%emt 0:00:31]} e6 {[%emt 0:00:36]} 5. Nb5 {[%emt 0:02:21]} Na6 {[%emt 0:00:07]} 6. Nf3 {[%emt 0:00:51]} Be7 {[%emt 0:00:20]} 7. a4 {[%emt 0:00:26]} O-O {[%emt 0:00:08]} 8. Ne5 {[%emt 0:01:17]} Ne4 {[%emt 0:01:58]} 9. f3 {[%emt 0:03:15]} Nd6 {[%emt 0:00:26]} 10. Nxd6 {[%emt 0:03:49]} Bxd6 {[%emt 0:00:04]} 11. Bxa6 {[%emt 0:00:07]} Qa5+ {[%emt 0:00:42]} 12. c3 {[%emt 0:01:39]} Qxa6 {[%emt 0:00:07]} 13. Qe2 {[%emt 0:01:12]} c4 {[%emt 0:00:54]} 14. O-O {[%emt 0:00:37]} f6 {[%emt 0:03:53]} 15. Ng4 {[%emt 0:00:08]} Be7 {[%emt 0:00:07]} 16. e4 {[%emt 0:00:41]} dxe4 {[%emt 0:00:02]} 17. fxe4 {[%emt 0:00:02]} Bd7 {[%emt 0:00:01]} 18. a5 {[%emt 0:01:12]} Rae8 {[%emt 0:00:30]} 19. Kh1 {[%emt 0:00:10]} Bd8 {[%emt 0:00:27]} 20. Ne3 {[%emt 0:00:28]} Bb5 {[%emt 0:00:17]} 21. Nc2 {[%emt 0:00:24]} Qc6 {[%emt 0:00:27]} 22. e5 {[%emt 0:00:33]} Qd7 {[%emt 0:00:33]} 23. exf6 {[%emt 0:00:09]} gxf6 {[%emt 0:00:11]} 24. Bh6 {[%emt 0:00:14]} Rf7 {[%emt 0:00:01]} 25. Rf3 {[%emt 0:00:11]} Kh8 {[%emt 0:00:08]} 26. Raf1 {[%emt 0:00:23]} Rg8 {[%emt 0:00:17]} 27. Qf2 {[%emt 0:00:15]} Rg6 {[%emt 0:00:27]} 28. Bc1 {[%emt 0:00:07]} Bc6 {[%emt 0:00:13]} 29. Rg3 {[%emt 0:00:05]} Rxg3 {[%emt 0:00:03]} 30. hxg3 {[%emt 0:00:05]} Be4 {[%emt 0:00:32]} 31. Ne3 {[%emt 0:00:06]} Bd3 {[%emt 0:00:01]} 32. Re1 {[%emt 0:00:01]} Bxa5 {[%emt 0:01:07]} 33. Nf1 {[%emt 0:00:05]} Qd5 {[%emt 0:00:15]} 34. Kg1 {[%emt 0:00:08]} Bc7 {[%emt 0:00:10]} 35. Bf4 {[%emt 0:00:16]} e5 {[%emt 0:00:14]} 36. Be3 {[%emt 0:00:05]} a5 {[%emt 0:01:01]} 37. Nh2 {[%emt 0:00:11]} Qd7 {[%emt 0:00:17]} 38. Nf3 {[%emt 0:00:12]} Qf5 {[%emt 0:00:12]} 39. Nh4 {[%emt 0:00:06]} Qxf2+ {[%emt 0:00:04]} 40. Kxf2 b5 {[%emt 0:00:08]} 41. Ra1 {[%emt 0:00:09]} Kg7 {[%emt 0:00:06]} 42. g4 {[%emt 0:00:04]} Rd7 {[%emt 0:00:36]} 43. Nf5+ {[%emt 0:00:10]} Kf7 {[%emt 0:00:13]} 44. Rh1 {[%emt 0:00:02]} Ke6 {[%emt 0:00:03]} 45. Rh5 {[%emt 0:00:08]} b4 {[%emt 0:00:07]} 46. dxe5 {[%emt 0:00:05]} Bxe5 {[%emt 0:00:07]} 47. Nd4+ {[%emt 0:00:05]} Kd5 {[%emt 0:00:12]} 48. g5 {[%emt 0:00:06]} bxc3 {[%emt 0:00:07]} 49. bxc3 {[%emt 0:00:01]} Bg6 {[%emt 0:00:09]} 50. Rh1 {[%emt 0:00:04]} fxg5 {[%emt 0:00:07]} 51. Bxg5 {[%emt 0:00:11]} a4 {[%emt 0:00:04]} 52. Rd1 {[%emt 0:00:05]} Bd3 {[%emt 0:00:04]} 53. Be3 {[%emt 0:00:03]} Rf7+ {[%emt 0:00:05]} 54. Kg1 {[%emt 0:00:04]} Rf6 {[%emt 0:00:04]} 55. Ra1 {[%emt 0:00:03]} Ra6 {[%emt 0:00:02]} 56. Ra3 {[%emt 0:00:04]} Bd6 {[%emt 0:00:01]} 57. Ra1 {[%emt 0:00:02]} a3 {[%emt 0:00:01]} 58. Nf3 {[%emt 0:00:02]} a2 {[%emt 0:00:05]} 59. Kf2 {[%emt 0:00:05]} Bc2 {[%emt 0:00:21]} 60. Nd4 {[%emt 0:00:07]} Bb3 {[%emt 0:00:04]} 61. Ke2 {[%emt 0:00:03]} Ba3 {[%emt 0:00:11]} 62. Rh1 {[%emt 0:00:04]} Rg6 {[%emt 0:00:31]} 63. Rh5+ {[%emt 0:00:02]} Kd6 {[%emt 0:00:01]} 64. Nb5+ {[%emt 0:00:01]} Kc6 {[%emt 0:00:24]} 65. Nd4+ {[%emt 0:00:08]} Kd7 {[%emt 0:00:09]} 66. Rxh7+ {[%emt 0:00:05]} Ke8 {[%emt 0:00:11]} 67. Rh1 {[%emt 0:00:11]} Bb2 {[%emt 0:00:25]} 68. Rh8+ {[%emt 0:00:19]} Kf7 {[%emt 0:00:02]} 0-1

[Event "HUN-ch Rapid 2019"]
[Site "Ajka"]
[Date "2019.07.19"]
[Round "2.7"]
[White "Ruck, Robert"]
[Black "Finszter, Mate"]
[Result "1-0"]
[ECO "B38"]
[WhiteElo "2524"]
[BlackElo "2276"]
[Annotator "ChessBase"]
[PlyCount "105"]
[EventDate "2019.07.18"]
[EventType "swiss"]
[EventCountry "HUN"]
[SourceTitle "playchess.com"]
[Source "ChessBase"]
[SourceQuality "1"]
[TimeControl "1200+5"]

1. Nf3 {[%emt 0:00:11]} c5 {[%emt 0:00:09]} 2. c4 {[%emt 0:00:02]} g6 {[%emt 0:00:06]} 3. e4 {[%emt 0:00:02]} Bg7 {[%emt 0:00:03]} 4. d4 {[%emt 0:00:02]} cxd4 {[%emt 0:00:03]} 5. Nxd4 {[%emt 0:00:02]} Nc6 {[%emt 0:00:07]} 6. Be3 {[%emt 0:00:05]} Nf6 {[%emt 0:00:06]} 7. Nc3 {[%emt 0:00:02]} d6 {[%emt 0:00:03]} 8. Be2 {[%emt 0:00:02]} O-O {[%emt 0:00:06]} 9. O-O {[%emt 0:00:03]} Bd7 {[%emt 0:00:19]} 10. Re1 {[%emt 0:00:07]} Nxd4 {[%emt 0:00:12]} 11. Bxd4 {[%emt 0:00:02]} Bc6 {[%emt 0:00:04]} 12. Bd3 {[%emt 0:00:05]} a5 {[%emt 0:00:25]} 13. Qd2 {[%emt 0:00:06]} Nd7 {[%emt 0:00:14]} 14. Bxg7 {[%emt 0:00:03]} Kxg7 {[%emt 0:00:03]} 15. Rad1 {[%emt 0:00:14]} Nc5 {[%emt 0:01:29]} 16. Bc2 {[%emt 0:01:01]} Qb6 {[%emt 0:00:55]} 17. Re3 {[%emt 0:00:04]} Rh8 {[%emt 0:01:46]} 18. Rh3 {[%emt 0:00:41]} h6 {[%emt 0:00:28]} 19. Rg3 {[%emt 0:00:55]} Rad8 {[%emt 0:01:01]} 20. b3 {[%emt 0:00:18]} e5 {[%emt 0:03:46]} 21. Rh3 {[%emt 0:02:27]} Ne6 {[%emt 0:00:24]} 22. Rd3 {[%emt 0:00:24]} Nd4 {[%emt 0:00:44]} 23. Qe3 {[%emt 0:02:07]} Qc5 {[%emt 0:00:32]} 24. Bb1 {[%emt 0:00:10]} Rhe8 {[%emt 0:00:55]} 25. R3d2 {[%emt 0:00:45]} Rh8 {[%emt 0:01:05]} 26. Ne2 {[%emt 0:00:09]} Nxe2+ {[%emt 0:01:16]} 27. Qxe2 {[%emt 0:00:05]} Rhe8 {[%emt 0:01:10]} 28. Re1 {[%emt 0:01:08]} Ra8 {[%emt 0:00:23]} 29. Qd1 {[%emt 0:00:04]} Re6 {[%emt 0:00:23]} 30. Re3 {[%emt 0:00:19]} a4 {[%emt 0:00:30]} 31. h3 {[%emt 0:02:54]} axb3 {[%emt 0:00:11]} 32. axb3 {[%emt 0:00:01]} Ra1 {[%emt 0:00:20]} 33. Ra2 {[%emt 0:00:58]} Rxa2 34. Bxa2 {[%emt 0:00:01]} Rf6 {[%emt 0:01:03]} 35. Qe1 {[%emt 0:00:14]} Qa3 {[%emt 0:00:17]} 36. Bb1 {[%emt 0:00:29]} Qb2 {[%emt 0:00:12]} 37. b4 {[%emt 0:00:25]} Qd4 {[%emt 0:00:59]} 38. Qc3 {[%emt 0:00:57]} Qd1+ {[%emt 0:00:59]} 39. Re1 {[%emt 0:00:05]} Qh5 {[%emt 0:00:06]} 40. Bc2 {[%emt 0:00:34]} Qg5 {[%emt 0:00:03]} 41. Qe3 {[%emt 0:00:39]} Qh4 {[%emt 0:00:15]} 42. Rd1 {[%emt 0:00:25]} Bd7 {[%emt 0:00:08]} 43. c5 {[%emt 0:00:17]} Bc6 {[%emt 0:00:09]} 44. Rxd6 {[%emt 0:01:04]} Rxd6 {[%emt 0:00:04]} 45. cxd6 {[%emt 0:00:02]} Qd8 {[%emt 0:00:02]} 46. Qc5 {[%emt 0:00:09]} Qe8 {[%emt 0:00:07]} 47. Bb3 {[%emt 0:00:27]} Kf6 {[%emt 0:00:03]} 48. f3 {[%emt 0:00:25]} Qd7 {[%emt 0:00:04]} 49. Kf2 {[%emt 0:00:21]} b6 {[%emt 0:00:05]} 50. Qc4 {[%emt 0:00:40]} Qxd6 {[%emt 0:00:06]} 51. Qxf7+ {[%emt 0:00:02]} Kg5 {[%emt 0:00:01]} 52. Kg3 {[%emt 0:00:04]} Qf6 {[%emt 0:00:11]} 53. h4+ {[%emt 0:00:03]} 1-0